fUSD/lending_fUSD_20260228
["ID","MTS","AMOUNT","RATE_DAILY","PERIOD"]
[406927669,1772284241518,-350.0,0.00013607,2]
[406927670,1772284241527,-500.0,0.00013607,2]
[406927671,1772284241536,-500.0,0.00013607,2]
[406927672,1772284241547,-500.0,0.00013607,2]
[406927673,1772284241556,-500.0,0.00013607,2]
[406927674,1772284241564,-500.0,0.00013607,2]
[406927675,1772284241573,-500.0,0.00013607,2]
[406927676,1772284241585,-500.0,0.00013607,2]
[406927677,1772284241594,-500.0,0.00013607,2]
[406927678,1772284241604,-500.0,0.00013607,2]
[406927679,1772284241615,-500.0,0.00013607,2]
[406927680,1772284241626,-500.0,0.00013607,2]
[406927681,1772284241637,-500.0,0.00013607,2]
[406927682,1772284241648,-500.0,0.00013607,2]
[406927683,1772284241659,-500.0,0.00013607,2]
[406927684,1772284241670,-500.0,0.00013607,2]
[406927685,1772284241680,-500.0,0.00013607,2]
[406927686,1772284241692,-350.0,0.00013607,2]
[406927687,1772284241703,-1500000.0,0.00013608,2]
[406927688,1772284241714,-1600.0,0.00013678,2]
[406927689,1772284241725,-500.0,0.00013698,2]
[406927690,1772284241734,-500.0,0.00013698,2]
[406927691,1772284241745,-500.0,0.00013698,2]
[406927692,1772284241755,-500.0,0.00013698,2]
[406927693,1772284241766,-270.1160722,0.00013698,2]
[406927694,1772284241776,-500.0,0.00013698,2]
[406927695,1772284241786,-500.0,0.00013698,2]
[406927696,1772284241796,-500.0,0.00013698,2]
[406927697,1772284241806,-500.0,0.00013698,2]
[406927698,1772284241815,-500.0,0.00013698,2]
[406927699,1772284241824,-500.0,0.00013698,2]
[406927700,1772284241833,-500.0,0.00013698,2]
[406927701,1772284241842,-500.0,0.00013698,2]
[406927702,1772284241851,-500.0,0.00013698,2]
[406927703,1772284241860,-500.0,0.00013698,2]
[406927704,1772284241870,-500.0,0.00013698,2]
[406927705,1772284241879,-500.0,0.00013698,2]
[406927706,1772284241888,-500.0,0.00013698,2]
[406927707,1772284241898,-500.0,0.00013698,2]
[406927708,1772284241908,-500.0,0.00013698,2]
[406927709,1772284241917,-500.0,0.00013698,2]
[406927710,1772284241926,-500.0,0.00013698,2]
[406927711,1772284241936,-500.0,0.00013698,2]
[406927712,1772284241945,-500.0,0.00013698,2]
[406927713,1772284241954,-440.49444221,0.00013698,2]
[406927714,1772284241962,-500.0,0.00013698,2]
[406927715,1772284241971,-500.0,0.00013698,2]
[406927716,1772284241980,-500.0,0.00013698,2]
[406927717,1772284241989,-500.0,0.00013698,2]
[406927718,1772284241999,-500.0,0.00013698,2]
[406927719,1772284242009,-500.0,0.00013698,2]
[406927720,1772284242018,-508.5684283,0.00013698,2]
[406927721,1772284242027,-500.0,0.00013698,2]
[406927722,1772284242037,-500.0,0.00013698,2]
[406927723,1772284242045,-500.0,0.00013698,2]
[406927724,1772284242055,-500.0,0.00013698,2]
[406927725,1772284242064,-500.0,0.00013698,2]
[406927726,1772284242073,-500.0,0.00013698,2]
[406927727,1772284242082,-721.68,0.00013698,2]
[406927728,1772284242091,-721.68,0.00013698,2]
[406927729,1772284242100,-721.68,0.00013698,2]
[406927730,1772284242109,-721.68,0.00013698,2]
[406927731,1772284242118,-721.68,0.00013698,2]
[406927732,1772284242127,-721.68,0.00013698,2]
[406927733,1772284242136,-500.0,0.00013698,2]
[406927734,1772284242145,-500.0,0.00013698,2]
[406927735,1772284242156,-500.0,0.00013698,2]
[406927736,1772284242166,-500.0,0.00013698,2]
[406927737,1772284242176,-500.0,0.00013698,2]
[406927738,1772284242186,-500.0,0.00013698,2]
[406927739,1772284242196,-500.0,0.00013698,2]
[406927740,1772284242205,-500.0,0.00013698,2]
[406927741,1772284242214,-500.0,0.00013698,2]
[406927742,1772284242224,-500.0,0.00013698,2]
[406927743,1772284242233,-500.0,0.00013698,2]
[406927744,1772284242247,-500.0,0.00013698,2]
[406927745,1772284242256,-500.0,0.00013698,2]
[406927746,1772284242266,-500.0,0.00013698,2]
[406927747,1772284242276,-500.0,0.00013698,2]
[406927748,1772284242286,-500.0,0.00013698,2]
[406927749,1772284242295,-500.0,0.00013698,2]
[406927750,1772284242305,-500.0,0.00013698,2]
[406927751,1772284242315,-500.0,0.00013698,2]
[406927752,1772284242325,-595.16967246,0.00013698,2]
[406927753,1772284242335,-500.0,0.00013698,2]
[406927754,1772284242345,-624.58042463,0.00013698,2]
[406927755,1772284242354,-500.0,0.00013698,2]
[406927756,1772284242364,-500.0,0.00013698,2]
[406927757,1772284242373,-500.0,0.00013698,2]
[406927758,1772284242383,-500.0,0.00013698,2]
[406927759,1772284242392,-500.0,0.00013698,2]
[406927760,1772284242404,-500.0,0.00013698,2]
[406927761,1772284242415,-843.23,0.00013699,2]
[406927762,1772284242425,-500.0,0.00013807,2]
[406927763,1772284242434,-500.0,0.00013807,2]
[406927764,1772284242443,-500.0,0.00013807,2]
[406927765,1772284242452,-32888.5933,0.00013808,2]
[406927766,1772284242461,-1000.0,0.00013808,2]
[406927767,1772284242471,-500.0,0.00013824,2]
[406927768,1772284242480,-500.0,0.00013824,2]
[406927769,1772284242489,-500.0,0.00013824,2]
[406927770,1772284242498,-500.0,0.00013824,2]
[406927771,1772284242507,-721.68,0.00013824,2]
[406927772,1772284242517,-500.0,0.00013824,2]
[406927773,1772284242527,-500.0,0.00013824,2]
[406927774,1772284242536,-2067.11575072,0.00013825,3]
[406927775,1772284242545,-500.0,0.00013908,2]
[406927776,1772284242554,-500.0,0.00013908,2]
[406927777,1772284242564,-500.0,0.00013908,2]
[406927778,1772284242573,-500.0,0.00013908,2]
[406927779,1772284242582,-500.0,0.00013908,2]
[406927780,1772284242591,-500.0,0.00013908,2]
[406927781,1772284242600,-500.0,0.00013908,2]
[406927782,1772284242609,-500.0,0.00013908,2]
[406927783,1772284242618,-308.79336882,0.00013908,2]
[406927784,1772284242627,-335.80836064,0.00013908,2]
[406927785,1772284242636,-500.0,0.00013908,2]
[406927786,1772284242645,-500.0,0.00013908,2]
[406927787,1772284242656,-209.76903842,0.00013908,2]
[406927788,1772284242665,-337.91550103,0.00013908,2]
[406927789,1772284242674,-500.0,0.00013908,2]
[406927790,1772284242683,-500.0,0.00013908,2]
[406927791,1772284242692,-500.0,0.00013908,2]
[406927792,1772284242701,-500.0,0.00013908,2]
[406927793,1772284242710,-164.35592024,0.00013908,2]
[406927794,1772284242719,-279.65230115,0.00013908,2]
[406927795,1772284242728,-500.0,0.00013908,2]
[406927797,1772284242738,-163.84904206,0.00013908,2]
[406927799,1772284242747,-500.0,0.00013908,2]
[406927800,1772284242755,-500.0,0.00013908,2]
[406927801,1772284242765,-162.16281507,0.00013908,2]
[406927802,1772284242773,-524.57437487,0.00013908,2]
[406927803,1772284242782,-500.0,0.00013908,2]
[406927804,1772284242792,-621.2419277,0.00013908,2]
[406927806,1772284242801,-500.0,0.00013908,2]
[406927807,1772284242811,-500.0,0.00013908,2]
[406927808,1772284242820,-500.0,0.00013908,2]
[406927809,1772284242829,-160.28869668,0.00013908,2]
[406927810,1772284242838,-500.0,0.00013908,2]
[406927811,1772284242847,-500.0,0.00013908,2]
[406927812,1772284242856,-500.0,0.00013908,2]
[406927813,1772284242865,-500.0,0.00013908,2]
[406927814,1772284242874,-500.0,0.00013908,2]
[406927815,1772284242883,-500.0,0.00013908,2]
[406927816,1772284242892,-500.0,0.00013908,2]
[406927817,1772284242902,-500.0,0.00013908,2]
[406927818,1772284242911,-500.0,0.00013908,2]
[406927819,1772284242921,-500.0,0.00013908,2]
[406927820,1772284242930,-500.0,0.00013908,2]
[406927821,1772284242940,-500.0,0.00013908,2]
[406927822,1772284242949,-500.0,0.00013908,2]
[406927823,1772284242958,-500.0,0.00013908,2]
[406927824,1772284242968,-500.0,0.00013908,2]
[406927825,1772284242977,-500.0,0.00013908,2]
[406927826,1772284242987,-500.0,0.00013908,2]
[406927827,1772284242996,-500.0,0.00013908,2]
[406927828,1772284243005,-500.0,0.00013908,2]
[406927829,1772284243015,-500.0,0.00013908,2]
[406927830,1772284243024,-160.97258953,0.00013908,2]
[406927831,1772284243033,-164.07470798,0.00013908,2]
[406927832,1772284243042,-500.0,0.00013908,2]
[406927833,1772284243051,-500.0,0.00013908,2]
[406927834,1772284243060,-500.0,0.00013908,2]
[406927835,1772284243069,-500.0,0.00013908,2]
[406927836,1772284243078,-500.0,0.00013908,2]
[406927837,1772284243087,-500.0,0.00013908,2]
[406927838,1772284243096,-310.96112452,0.00013908,2]
[406927839,1772284243105,-500.0,0.00013908,2]
[406927840,1772284243114,-500.0,0.00013908,2]
[406927841,1772284243123,-500.0,0.00013908,2]
[406927842,1772284243132,-500.0,0.00013908,2]
[406927843,1772284243142,-500.0,0.00013908,2]
[406927844,1772284243161,-3625.57879218,0.00013994,2]
[406927845,1772284243170,-20182.76517958,0.00013996,2]
[406927846,1772284243179,-2094.95123635,0.000141,3]
[406927847,1772284243188,-512.0,0.0001411,2]
[406927848,1772284243201,-1023.23499727,0.00014155,2]
[406927849,1772284243210,-5562.57052734,0.00014155,2]
[406927853,1772284243344,-3658.72327924,0.00014195,2]
[406927855,1772284243355,-150.0,0.00014227,2]
[406927857,1772284243366,-150.0,0.00014227,2]
[406927859,1772284243377,-453.00544137,0.0001424,2]
[406927861,1772284243388,-163.6142786,0.00014245,2]
[406927863,1772284243399,-459.27341703,0.00014254,2]
[406927866,1772284243410,-500.0,0.00014254,2]
[406927868,1772284243420,-207.62504932,0.00014254,2]
[406927870,1772284243430,-500.0,0.00014254,2]
[406927871,1772284243441,-500.0,0.00014254,2]
[406927873,1772284243450,-500.0,0.00014254,2]
[406927875,1772284243460,-500.0,0.00014254,2]
[406927877,1772284243469,-500.0,0.00014254,2]
[406927879,1772284243481,-500.0,0.00014254,2]
[406927881,1772284243492,-508.9520738,0.00014254,2]
[406927883,1772284243503,-500.0,0.00014254,2]
[406927885,1772284243515,-500.0,0.00014254,2]
[406927887,1772284243526,-505.0171713,0.00014254,2]
[406927889,1772284243539,-553.51201991,0.00014254,2]
[406927891,1772284243550,-500.0,0.00014254,2]
[406927893,1772284243560,-500.0,0.00014254,2]
[406927895,1772284243571,-500.0,0.00014254,2]
[406927897,1772284243582,-500.0,0.00014254,2]
[406927899,1772284243593,-500.0,0.00014254,2]
[406927901,1772284243604,-500.0,0.00014254,2]
[406927904,1772284243615,-500.0,0.00014254,2]
[406927905,1772284243625,-290.04213309,0.00014254,2]
[406927908,1772284243637,-500.0,0.00014254,2]
[406927909,1772284243649,-500.0,0.00014254,2]
[406927911,1772284243662,-500.0,0.00014254,2]
[406927913,1772284243671,-500.0,0.00014254,2]
[406927915,1772284243680,-500.0,0.00014254,2]
[406927917,1772284243690,-500.0,0.00014254,2]
[406927919,1772284243700,-500.0,0.00014254,2]
[406927921,1772284243710,-500.0,0.00014254,2]
[406927923,1772284243721,-500.0,0.00014254,2]
[406927925,1772284243732,-500.0,0.00014254,2]
[406927927,1772284243742,-500.0,0.00014254,2]
[406927929,1772284243753,-500.0,0.00014254,2]
[406927931,1772284243763,-500.0,0.00014254,2]
[406927933,1772284243772,-500.0,0.00014254,2]
[406927935,1772284243782,-500.0,0.00014254,2]
[406927937,1772284243793,-500.0,0.00014254,2]
[406927939,1772284243802,-500.0,0.00014254,2]
[406927942,1772284243813,-500.0,0.00014254,2]
[406927944,1772284243823,-500.0,0.00014254,2]
[406927945,1772284243833,-500.0,0.00014254,2]
[406927946,1772284243842,-500.0,0.00014254,2]
[406927947,1772284243853,-500.0,0.00014254,2]
[406927948,1772284243864,-500.0,0.00014254,2]
[406927949,1772284243875,-500.0,0.00014254,2]
[406927950,1772284243886,-500.0,0.00014254,2]
[406927951,1772284243897,-500.0,0.00014254,2]
[406927952,1772284243910,-500.0,0.00014254,2]
[406927953,1772284243921,-420.02604084,0.00014254,2]
[406927954,1772284243931,-500.0,0.00014254,2]
[406927955,1772284243941,-500.0,0.00014254,2]
[406927956,1772284243951,-500.0,0.00014254,2]
[406927957,1772284243961,-500.0,0.00014254,2]
[406927958,1772284243970,-500.0,0.00014254,2]
[406927959,1772284243980,-500.0,0.00014254,2]
[406927960,1772284243992,-500.0,0.00014254,2]
[406927961,1772284244002,-500.0,0.00014254,2]
[406927962,1772284244013,-500.0,0.00014254,2]
[406927963,1772284244023,-500.0,0.00014254,2]
[406927964,1772284244033,-721.68,0.00014254,2]
[406927965,1772284244046,-721.68,0.00014254,2]
[406927966,1772284244057,-721.68,0.00014254,2]
[406927967,1772284244066,-721.68,0.00014254,2]
[406927968,1772284244077,-721.68,0.00014254,2]
[406927969,1772284244088,-721.68,0.00014254,2]
[406927970,1772284244097,-721.68,0.00014254,2]
[406927971,1772284244106,-721.68,0.00014254,2]
[406927972,1772284244115,-721.68,0.00014254,2]
[406927973,1772284244126,-721.68,0.00014254,2]
[406927974,1772284244136,-500.0,0.00014254,2]
[406927975,1772284244147,-500.0,0.00014254,2]
[406927976,1772284244161,-500.0,0.00014254,2]
[406927977,1772284244170,-500.0,0.00014254,2]
[406927978,1772284244181,-500.0,0.00014254,2]
[406927979,1772284244192,-500.0,0.00014254,2]
[406927980,1772284244203,-500.0,0.00014254,2]
[406927981,1772284244213,-500.0,0.00014254,2]
[406927982,1772284244223,-500.0,0.00014254,2]
[406927983,1772284244232,-500.0,0.00014254,2]
[406927984,1772284244247,-500.0,0.00014254,2]
[406927985,1772284244256,-500.0,0.00014254,2]
[406927986,1772284244266,-500.0,0.00014254,2]
[406927987,1772284244275,-500.0,0.00014254,2]
[406927988,1772284244285,-500.0,0.00014254,2]
[406927989,1772284244294,-500.0,0.00014254,2]
[406927990,1772284244304,-500.0,0.00014254,2]
[406927991,1772284244314,-500.0,0.00014254,2]
[406927992,1772284244323,-500.0,0.00014254,2]
[406927993,1772284244332,-500.0,0.00014254,2]
[406927994,1772284244342,-500.0,0.00014254,2]
[406927995,1772284244351,-500.0,0.00014254,2]
[406927996,1772284244361,-500.0,0.00014254,2]
[406927997,1772284244371,-500.0,0.00014254,2]
[406927998,1772284244380,-500.0,0.00014254,2]
[406927999,1772284244389,-508.21782231,0.00014254,2]
[406928000,1772284244399,-500.0,0.00014254,2]
[406928001,1772284244409,-500.0,0.00014254,2]
[406928002,1772284244421,-500.0,0.00014254,2]
[406928003,1772284244430,-500.0,0.00014254,2]
[406928004,1772284244439,-224.9999,0.00014255,2]
[406928005,1772284244448,-2500000.0,0.00014255,2]
[406928006,1772284244458,-500.0,0.00014255,2]
[406928007,1772284244468,-500.0,0.00014255,2]
[406928008,1772284244477,-500.0,0.00014255,2]
[406928009,1772284244487,-500.0,0.00014255,2]
[406928010,1772284244496,-500.0,0.00014255,2]
[406928011,1772284244506,-601.46010123,0.00014255,2]
[406928012,1772284244516,-288.1281186,0.00014282,2]
[406928013,1772284244525,-500.0,0.00014282,2]
[406928014,1772284244534,-681.81,0.00014282,2]
[406928015,1772284244543,-500.0,0.00014282,2]
[406928016,1772284244552,-500.0,0.00014282,2]
[406928017,1772284244562,-195.98442162,0.00014355,2]
[406928018,1772284244571,-500.0,0.00014355,2]
[406928019,1772284244580,-500.0,0.00014355,2]
[406928020,1772284244589,-500.0,0.00014355,2]
[406928021,1772284244598,-500.0,0.00014355,2]
[406928022,1772284244607,-500.0,0.00014355,2]
[406928023,1772284244617,-500.0,0.00014355,2]
[406928024,1772284244626,-329.64340271,0.00014355,2]
[406928025,1772284244636,-500.0,0.00014355,2]
[406928026,1772284244646,-500.0,0.00014355,2]
[406928027,1772284244656,-500.0,0.00014355,2]
[406928028,1772284244665,-161.88293327,0.00014355,2]
[406928029,1772284244675,-500.0,0.00014355,2]
[406928030,1772284244684,-500.0,0.00014355,2]
[406928031,1772284244693,-500.0,0.00014355,2]
[406928032,1772284244703,-500.0,0.00014355,2]
[406928033,1772284244712,-439.79063626,0.00014355,2]
[406928034,1772284244722,-681.81,0.00014355,2]
[406928035,1772284244731,-681.81,0.00014355,2]
[406928036,1772284244741,-681.81,0.00014355,2]
[406928037,1772284244750,-681.81,0.00014355,2]
[406928038,1772284244759,-681.81,0.00014355,2]
[406928039,1772284244769,-681.81,0.00014355,2]
[406928040,1772284244778,-500.0,0.00014355,2]
[406928041,1772284244787,-500.0,0.00014355,2]
[406928042,1772284244797,-500.0,0.00014355,2]
[406928043,1772284244806,-500.0,0.00014355,2]
[406928044,1772284244816,-500.0,0.00014355,2]
[406928045,1772284244825,-500.0,0.00014355,2]
[406928046,1772284244835,-500.0,0.00014355,2]
[406928047,1772284244844,-500.0,0.00014355,2]
[406928048,1772284244853,-500.0,0.00014355,2]
[406928049,1772284244862,-219.67514616,0.00014355,2]
[406928050,1772284244872,-300.0,0.00014374,2]
[406928051,1772284244881,-300.0,0.00014374,2]
[406928052,1772284244890,-300.0,0.00014374,2]
[406928053,1772284244899,-286.19818021,0.00014374,2]
[406928054,1772284244909,-500.0,0.00014374,2]
[406928055,1772284244918,-2500.0,0.00014374,2]
[406928056,1772284244927,-150.6171655,0.00014374,2]
[406928057,1772284244937,-2500.0,0.00014374,2]
[406928058,1772284244946,-2500.0,0.00014374,2]
[406928059,1772284244955,-300.0,0.00014374,2]
[406928060,1772284244964,-300.0,0.00014374,2]
[406928061,1772284244973,-300.0,0.00014374,2]
[406928062,1772284244983,-300.0,0.00014374,2]
[406928063,1772284244992,-300.0,0.00014374,2]
[406928064,1772284245002,-500.0,0.00014455,2]
[406928065,1772284245011,-1000.0,0.00014456,2]
[406928066,1772284245020,-1010.19433144,0.00014456,2]
[406928067,1772284245030,-1000.0,0.00014456,2]
[406928068,1772284245039,-801.08254131,0.00014456,2]
[406928069,1772284245048,-1000.0,0.00014456,2]
[406928070,1772284245057,-604.79723351,0.00014456,2]
[406928071,1772284245066,-1000.0,0.00014456,2]
[406928072,1772284245076,-176.28801878,0.00014456,2]
[406928073,1772284245085,-1000.0,0.00014456,2]
[406928074,1772284245094,-1000.0,0.00014456,2]
[406928075,1772284245103,-1009.56822593,0.00014456,2]
[406928076,1772284245112,-1000.0,0.00014456,2]
[406928077,1772284245121,-1000.0,0.00014456,2]
[406928078,1772284245131,-1000.0,0.00014456,2]
[406928079,1772284245140,-1000.0,0.00014456,2]
[406928080,1772284245149,-352.15203675,0.00014456,2]
[406928081,1772284245159,-380.87372073,0.00014456,2]
[406928082,1772284245168,-1000.0,0.00014456,2]
[406928083,1772284245178,-1001.25349418,0.00014456,2]
[406928084,1772284245187,-1000.0,0.00014456,2]
[406928085,1772284245195,-1000.0,0.00014456,2]
[406928086,1772284245204,-1000.0,0.00014456,2]
[406928087,1772284245213,-1000.0,0.00014456,2]
[406928088,1772284245222,-1000.0,0.00014456,2]
[406928089,1772284245231,-1000.0,0.00014456,2]
[406928090,1772284245241,-1000.0,0.00014456,2]
[406928091,1772284245253,-1000.0,0.00014456,2]
[406928092,1772284245262,-468.68636614,0.00014456,2]
[406928093,1772284245271,-993.55181504,0.00014456,2]
[406928094,1772284245280,-1000.0,0.00014456,2]
[406928095,1772284245290,-1000.0,0.00014456,2]
[406928096,1772284245299,-185.91789535,0.00014456,2]
[406928097,1772284245309,-1000.0,0.00014456,2]
[406928098,1772284245319,-1004.03248552,0.00014456,2]
[406928099,1772284245328,-1000.0,0.00014456,2]
[406928100,1772284245337,-882.9763382,0.00014456,2]
[406928101,1772284245346,-1000.0,0.00014456,2]
[406928102,1772284245356,-1000.0,0.00014456,2]
[406928103,1772284245365,-1000.0,0.00014456,2]
[406928104,1772284245375,-503.10076377,0.00014456,2]
[406928105,1772284245383,-1000.0,0.00014456,2]
[406928106,1772284245393,-1000.0,0.00014456,2]
[406928107,1772284245402,-1000.0,0.00014456,2]
[406928108,1772284245411,-1000.0,0.00014456,2]
[406928109,1772284245420,-1000.0,0.00014456,2]
[406928110,1772284245429,-500.0,0.00014456,2]
[406928111,1772284245438,-501.70249257,0.00014456,2]
[406928112,1772284245447,-1000.0,0.00014456,2]
[406928113,1772284245456,-1000.0,0.00014456,2]
[406928114,1772284245465,-1000.0,0.00014456,2]
[406928115,1772284245475,-1000.0,0.00014456,2]
[406928116,1772284245484,-1000.0,0.00014456,2]
[406928117,1772284245493,-3625.57879218,0.0001448,2]
[406928118,1772284245502,-20182.76517958,0.00014484,2]
[406928119,1772284245511,-2500.0,0.0001455,2]
[406928120,1772284245522,-2500.0,0.0001455,2]
[406928121,1772284245531,-600.0,0.0001455,2]
[406928122,1772284245540,-600.0,0.0001455,2]
[406928123,1772284245550,-600.0,0.0001455,2]
[406928124,1772284245559,-600.0,0.0001455,2]
[406928125,1772284245568,-600.0,0.0001455,2]
[406928126,1772284245577,-151.0,0.00014634,2]
[406928127,1772284245586,-3658.72327924,0.00014813,2]
[406928128,1772284245595,-1783.22,0.00014853,2]
[406928129,1772284245604,-338.86092418,0.000149,2]
[406928130,1772284245613,-3625.57879218,0.00014966,2]
[406928131,1772284245622,-20182.76517958,0.00014972,2]
[406928132,1772284245635,-453.00544137,0.00014972,2]
[406928133,1772284245644,-250.0,0.00015,2]
[406928135,1772284245654,-1500.0,0.00015004,2]
[406928136,1772284245663,-717.87177273,0.00015004,2]
[406928137,1772284245672,-1010.16686171,0.00015004,2]
[406928138,1772284245681,-1500.0,0.00015004,2]
[406928139,1772284245689,-1500.0,0.00015004,2]
[406928140,1772284245698,-1500.0,0.00015004,2]
[406928141,1772284245707,-593.78241863,0.00015004,2]
[406928142,1772284245717,-1008.05702942,0.00015004,2]
[406928143,1772284245726,-1500.0,0.00015004,2]
[406928144,1772284245734,-1000.0,0.00015004,2]
[406928145,1772284245744,-1500.0,0.00015004,2]
[406928146,1772284245753,-1386.82916028,0.00015004,2]
[406928147,1772284245763,-511.98217898,0.00015004,2]
[406928148,1772284245772,-1500.0,0.00015004,2]
[406928149,1772284245780,-1500.0,0.00015004,2]
[406928150,1772284245790,-1000.0,0.00015004,2]
[406928151,1772284245799,-1189.77392428,0.00015004,2]
[406928152,1772284245808,-1218.82282533,0.00015004,2]
[406928153,1772284245817,-1500.0,0.00015004,2]
[406928154,1772284245826,-514.6582369,0.00015004,2]
[406928155,1772284245835,-1500.0,0.00015004,2]
[406928156,1772284245845,-1500.0,0.00015004,2]
[406928157,1772284245854,-1500.0,0.00015004,2]
[406928158,1772284245862,-1500.0,0.00015004,2]
[406928159,1772284245871,-1008.78545051,0.00015004,2]
[406928160,1772284245881,-503.90241085,0.00015004,2]
[406928161,1772284245889,-1500.0,0.00015004,2]
[406928162,1772284245899,-1500.0,0.00015004,2]
[406928163,1772284245908,-1500.0,0.00015004,2]
[406928164,1772284245918,-1243.29162459,0.00015004,2]
[406928165,1772284245927,-1500.0,0.00015004,2]
[406928166,1772284245936,-1500.0,0.00015004,2]
[406928167,1772284245946,-721.68,0.00015058,2]
[406928168,1772284245955,-500.0,0.00015058,2]
[406928169,1772284245964,-681.81,0.0001535,2]
[406928170,1772284245973,-500.0,0.0001535,2]
[406928171,1772284245982,-1600.0,0.00015388,2]
[406928172,1772284245991,-3658.72327924,0.0001543,2]
[406928173,1772284246000,-3625.57879218,0.00015452,2]
[406928174,1772284246009,-20182.76517958,0.0001546,2]
[406928175,1772284246019,-1500.0,0.00015552,2]
[406928176,1772284246028,-2000.0,0.00015552,2]
[406928177,1772284246036,-2000.0,0.00015552,2]
[406928178,1772284246046,-2000.0,0.00015552,2]
[406928179,1772284246055,-1019.35272173,0.00015552,2]
[406928180,1772284246064,-2000.0,0.00015552,2]
[406928181,1772284246073,-1432.25528949,0.00015552,2]
[406928182,1772284246083,-2000.0,0.00015552,2]
[406928183,1772284246092,-2000.0,0.00015552,2]
[406928184,1772284246101,-2118.86499239,0.00015552,2]
[406928185,1772284246110,-1041.26009197,0.00015552,2]
[406928186,1772284246119,-2000.0,0.00015552,2]
[406928187,1772284246128,-2000.0,0.00015552,2]
[406928189,1772284246137,-513.9298778,0.00015552,2]
[406928191,1772284246147,-150.13473928,0.00015552,2]
[406928192,1772284246157,-2009.53925467,0.00015552,2]
[406928193,1772284246165,-2000.0,0.00015552,2]
[406928194,1772284246175,-1703.36470484,0.00015552,2]
[406928195,1772284246184,-453.00544137,0.00015704,2]
[406928196,1772284246192,-317.53143114,0.00015704,2]
[406928197,1772284246201,-16391.0,0.00015933,2]
[406928198,1772284246210,-3625.57879218,0.00015938,2]
[406928199,1772284246219,-20182.76517958,0.00015947,2]
[406928200,1772284246228,-1015.21,0.00016,2]
[406928201,1772284246238,-500.0,0.00016026,2]
[406928202,1772284246251,-500.0,0.00016026,2]
[406928203,1772284246259,-500.0,0.00016026,2]
[406928204,1772284246268,-500.0,0.00016026,2]
[406928205,1772284246278,-500.0,0.00016026,2]
[406928206,1772284246289,-500.0,0.00016026,2]
[406928207,1772284246298,-500.0,0.00016026,2]
[406928208,1772284246308,-500.0,0.00016026,2]
[406928209,1772284246319,-500.0,0.00016026,2]
[406928210,1772284246328,-500.0,0.00016026,2]
[406928211,1772284246338,-500.0,0.00016026,2]
[406928212,1772284246347,-500.0,0.00016026,2]
[406928213,1772284246357,-500.0,0.00016026,2]
[406928214,1772284246366,-446.84331536,0.00016026,2]
[406928215,1772284246375,-668.65185757,0.00016026,2]
[406928216,1772284246384,-1023.23499725,0.00016028,2]
[406928217,1772284246394,-5562.57052734,0.00016028,2]
[406928218,1772284246404,-3658.72327924,0.00016048,2]
[406928219,1772284246413,-693.3919763,0.00016081,2]
[406928220,1772284246423,-2532.89246011,0.00016099,2]
[406928221,1772284246432,-2500.0,0.00016099,2]
[406928222,1772284246441,-1712.37829793,0.00016099,2]
[406928223,1772284246563,-2500.0,0.00016099,2]